[Event "Late-Titled-Tuesday-Blitz-June-25-2024"]
[Site "Chess.com"]
[Date "2024.06.25"]
[Round "5"]
[White "GoValya"]
[Black "Defenstrator"]
[Result "1-0"]
[WhiteElo "2220"]
[BlackElo "2410"]
[TimeControl "180+1"]
[EndTime "14:56:16 PDT"]
[Termination "GoValya won by checkmate"]

1. d4 {[%clk 0:03:00.9]} 1... e6 {[%clk 0:02:50]} 2. g3 {[%clk 0:02:59.4]} 2...
c5 {[%clk 0:02:50]} 3. Bg2 {[%clk 0:02:58.5]} 3... cxd4 {[%clk 0:02:49.9]} 4.
Qxd4 {[%clk 0:02:58.6]} 4... d5 {[%clk 0:02:48.8]} 5. c4 {[%clk 0:02:57.7]} 5...
Nc6 {[%clk 0:02:48.4]} 6. Qf4 {[%clk 0:02:57.3]} 6... Bd6 {[%clk 0:02:41.6]} 7.
Qg5 {[%clk 0:02:46.9]} 7... Qf6 {[%clk 0:02:27.7]} 8. Qxf6 {[%clk 0:02:36.9]}
8... Nxf6 {[%clk 0:02:27.6]} 9. cxd5 {[%clk 0:02:37.2]} 9... Nb4 {[%clk
0:02:27.8]} 10. Na3 {[%clk 0:02:32.8]} 10... Nbxd5 {[%clk 0:02:24.6]} 11. Nc4
{[%clk 0:02:28.9]} 11... Bb4+ {[%clk 0:02:24.1]} 12. Bd2 {[%clk 0:02:26.4]}
12... O-O {[%clk 0:02:20.1]} 13. Nf3 {[%clk 0:02:19.3]} 13... b5 {[%clk
0:02:03.8]} 14. Nce5 {[%clk 0:02:10.2]} 14... Bb7 {[%clk 0:02:00.3]} 15. O-O
{[%clk 0:02:05.6]} 15... Rac8 {[%clk 0:01:51.4]} 16. Rac1 {[%clk 0:02:03.9]}
16... Ne4 {[%clk 0:01:42.4]} 17. Bxb4 {[%clk 0:01:56.4]} 17... Nxb4 {[%clk
0:01:42.8]} 18. a3 {[%clk 0:01:56.8]} 18... Na6 {[%clk 0:01:23.2]} 19. Nd4
{[%clk 0:01:41]} 19... b4 {[%clk 0:00:58.9]} 20. axb4 {[%clk 0:01:32.5]} 20...
Nxb4 {[%clk 0:00:58.1]} 21. Ra1 {[%clk 0:01:32.7]} 21... a6 {[%clk 0:00:50.3]}
22. Ra4 {[%clk 0:01:26.4]} 22... a5 {[%clk 0:00:33.8]} 23. Rxa5 {[%clk
0:01:24.1]} 23... Rfd8 {[%clk 0:00:33]} 24. e3 {[%clk 0:01:18.8]} 24... Bd5
{[%clk 0:00:32]} 25. Ra4 {[%clk 0:01:14.9]} 25... Nd3 {[%clk 0:00:30.9]} 26.
Nxd3 {[%clk 0:01:12.9]} 26... Nd2 {[%clk 0:00:27.8]} 27. Bxd5 {[%clk 0:01:01.3]}
27... Nxf1 {[%clk 0:00:25.3]} 28. Bb7 {[%clk 0:01:01.4]} 28... Rc7 {[%clk
0:00:22.2]} 29. Kxf1 {[%clk 0:00:50.7]} 29... Rxb7 {[%clk 0:00:21.9]} 30. Ke2
{[%clk 0:00:38.7]} 30... e5 {[%clk 0:00:21.7]} 31. Nxe5 {[%clk 0:00:38.7]} 31...
Rxb2+ {[%clk 0:00:22]} 32. Kf3 {[%clk 0:00:38.7]} 32... Re8 {[%clk 0:00:15.3]}
33. Nec6 {[%clk 0:00:37.6]} 33... g6 {[%clk 0:00:10.3]} 34. Ra7 {[%clk
0:00:36.5]} 34... Kg7 {[%clk 0:00:08.7]} 35. Ne7 {[%clk 0:00:31.5]} 35... Reb8
{[%clk 0:00:04.6]} 36. Nd5 {[%clk 0:00:30.2]} 36... R8b7 {[%clk 0:00:04.6]} 37.
Ra6 {[%clk 0:00:25.8]} 37... h5 {[%clk 0:00:05.1]} 38. Rd6 {[%clk 0:00:20.6]}
38... Rd2 {[%clk 0:00:05]} 39. Nf6 {[%clk 0:00:18.6]} 39... Rbb2 {[%clk
0:00:04.5]} 40. Ne4 {[%clk 0:00:18.5]} 40... Rd1 {[%clk 0:00:03.8]} 41. Rd7
{[%clk 0:00:17.6]} 41... Kh6 {[%clk 0:00:02]} 42. Rxf7 {[%clk 0:00:16.7]} 42...
Rf1 {[%clk 0:00:02.4]} 43. Ne6 {[%clk 0:00:16.1]} 43... g5 {[%clk 0:00:02]} 44.
N6xg5 {[%clk 0:00:16]} 44... Kg6 {[%clk 0:00:02.5]} 45. Rf6+ {[%clk 0:00:16.2]}
45... Kg7 {[%clk 0:00:02.7]} 46. Rd6 {[%clk 0:00:16.2]} 46... Rbb1 {[%clk
0:00:01.6]} 47. h3 {[%clk 0:00:16.1]} 47... Rb2 {[%clk 0:00:02]} 48. h4 {[%clk
0:00:16.3]} 48... Kf8 {[%clk 0:00:02.1]} 49. Rd7 {[%clk 0:00:15.8]} 49... Ke8
{[%clk 0:00:02.6]} 50. Rh7 {[%clk 0:00:15.6]} 50... Kd8 {[%clk 0:00:02.2]} 51.
Rxh5 {[%clk 0:00:15.8]} 51... Ke8 {[%clk 0:00:02.5]} 52. Rh8+ {[%clk 0:00:16]}
52... Ke7 {[%clk 0:00:02.9]} 53. h5 {[%clk 0:00:16.5]} 53... Rh1 {[%clk
0:00:01.5]} 54. h6 {[%clk 0:00:16.7]} 54... Rb6 {[%clk 0:00:01.6]} 55. h7 {[%clk
0:00:16.7]} 55... Rbh6 {[%clk 0:00:02.2]} 56. Rb8 {[%clk 0:00:16]} 56... Kd7
{[%clk 0:00:01.9]} 57. Rb7+ {[%clk 0:00:12.4]} 57... Kc6 {[%clk 0:00:01.4]} 58.
Rb8 {[%clk 0:00:12.3]} 58... Kd5 {[%clk 0:00:01.9]} 59. Rd8+ {[%clk 0:00:11.7]}
59... Ke5 {[%clk 0:00:02.2]} 60. Re8+ {[%clk 0:00:11.4]} 60... Kf5 {[%clk
0:00:02.7]} 61. Rf8+ {[%clk 0:00:11.4]} 61... Kg6 {[%clk 0:00:02.9]} 62. Rf6+
{[%clk 0:00:11.5]} 62... Kg7 {[%clk 0:00:03.6]} 63. Rxh6 {[%clk 0:00:11.6]}
63... Rxh6 {[%clk 0:00:04]} 64. Kg4 {[%clk 0:00:12]} 64... Rh1 {[%clk
0:00:04.1]} 65. f4 {[%clk 0:00:12.1]} 65... Kh8 {[%clk 0:00:04.5]} 66. f5 {[%clk
0:00:12.2]} 66... Rh6 {[%clk 0:00:04]} 67. Nf2 {[%clk 0:00:11.8]} 67... Rh2
{[%clk 0:00:04]} 68. Nfh3 {[%clk 0:00:11.4]} 68... Ra2 {[%clk 0:00:04.1]} 69.
Nf4 {[%clk 0:00:11.3]} 69... Ra6 {[%clk 0:00:03.2]} 70. Nh5 {[%clk 0:00:10.5]}
70... Ra4+ {[%clk 0:00:02.5]} 71. Nf4 {[%clk 0:00:10.3]} 71... Ra6 {[%clk
0:00:02]} 72. e4 {[%clk 0:00:10.4]} 72... Ra5 {[%clk 0:00:01.6]} 73. e5 {[%clk
0:00:10.7]} 73... Rxe5 {[%clk 0:00:02.2]} 74. Nf7+ {[%clk 0:00:11]} 74... Kxh7
{[%clk 0:00:02.5]} 75. Nxe5 {[%clk 0:00:11.4]} 75... Kg7 {[%clk 0:00:03.4]} 76.
Kg5 {[%clk 0:00:11.5]} 76... Kh8 {[%clk 0:00:04.1]} 77. f6 {[%clk 0:00:11.4]}
77... Kh7 {[%clk 0:00:04.5]} 78. f7 {[%clk 0:00:11.1]} 78... Kg7 {[%clk
0:00:05.2]} 79. Nfg6 {[%clk 0:00:10.1]} 79... Kh7 {[%clk 0:00:05.5]} 80. Kh5
{[%clk 0:00:09.3]} 80... Kg7 {[%clk 0:00:05.3]} 81. f8=Q+ {[%clk 0:00:09.7]}
81... Kh7 {[%clk 0:00:06]} 82. Qh8# {[%clk 0:00:09.5]} 1-0

[Event "Late-Titled-Tuesday-Blitz-June-25-2024"]
[Site "Chess.com"]
[Date "2024.06.25"]
[Round "5"]
[White "TokChess"]
[Black "GAZZAN_3000"]
[Result "1/2-1/2"]
[WhiteElo "2518"]
[BlackElo "2736"]
[TimeControl "180+1"]
[EndTime "14:56:18 PDT"]
[Termination "Game drawn - insufficient material"]

1. e4 {[%clk 0:03:00.9]} 1... c5 {[%clk 0:02:59.8]} 2. Nf3 {[%clk 0:03:00.9]}
2... Nc6 {[%clk 0:03:00]} 3. Bb5 {[%clk 0:03:00.6]} 3... g6 {[%clk 0:02:58.6]}
4. Bxc6 {[%clk 0:02:58.5]} 4... bxc6 {[%clk 0:02:58.4]} 5. O-O {[%clk
0:02:59.4]} 5... Bg7 {[%clk 0:02:58.6]} 6. d3 {[%clk 0:02:57.6]} 6... d6 {[%clk
0:02:58]} 7. Re1 {[%clk 0:02:56.9]} 7... e5 {[%clk 0:02:57.6]} 8. Nbd2 {[%clk
0:02:56.5]} 8... Ne7 {[%clk 0:02:57.6]} 9. h3 {[%clk 0:02:56.2]} 9... O-O {[%clk
0:02:57.6]} 10. Nc4 {[%clk 0:02:56.8]} 10... h6 {[%clk 0:02:54.7]} 11. c3 {[%clk
0:02:51.7]} 11... Be6 {[%clk 0:02:51.7]} 12. Be3 {[%clk 0:02:45.2]} 12... f5
{[%clk 0:02:46]} 13. exf5 {[%clk 0:02:43.1]} 13... gxf5 {[%clk 0:02:31.2]} 14.
Qa4 {[%clk 0:02:32.4]} 14... f4 {[%clk 0:02:27.2]} 15. Bd2 {[%clk 0:02:28]}
15... Bd5 {[%clk 0:02:26.5]} 16. Nh2 {[%clk 0:02:20.5]} 16... Ng6 {[%clk
0:02:19.8]} 17. Re4 {[%clk 0:02:07.7]} 17... Bxe4 {[%clk 0:02:12.5]} 18. dxe4
{[%clk 0:02:08.6]} 18... Ne7 {[%clk 0:02:01.2]} 19. Rd1 {[%clk 0:02:04.5]} 19...
Qb8 {[%clk 0:01:55]} 20. Bc1 {[%clk 0:01:58]} 20... Rd8 {[%clk 0:01:54.6]} 21.
Qc2 {[%clk 0:01:43.3]} 21... d5 {[%clk 0:01:42.6]} 22. Na5 {[%clk 0:01:39.9]}
22... Qc7 {[%clk 0:01:35.7]} 23. Nb3 {[%clk 0:01:30.7]} 23... c4 {[%clk
0:01:31.7]} 24. Nd2 {[%clk 0:01:30.7]} 24... Qc8 {[%clk 0:01:26.3]} 25. Re1
{[%clk 0:01:28.3]} 25... Qe6 {[%clk 0:01:23.7]} 26. Nhf3 {[%clk 0:01:28.1]}
26... Ng6 {[%clk 0:01:13.1]} 27. Qa4 {[%clk 0:01:13.5]} 27... Qf6 {[%clk
0:00:52.9]} 28. Qa6 {[%clk 0:01:07.9]} 28... Kh7 {[%clk 0:00:45.9]} 29. Nh2
{[%clk 0:01:00.5]} 29... Qe6 {[%clk 0:00:41.1]} 30. Nhf3 {[%clk 0:00:57.7]}
30... Qc8 {[%clk 0:00:39.5]} 31. Qa4 {[%clk 0:00:57]} 31... Qe6 {[%clk
0:00:32.2]} 32. Qa6 {[%clk 0:00:56.9]} 32... Rab8 {[%clk 0:00:30.9]} 33. a3
{[%clk 0:00:52.1]} 33... Qc8 {[%clk 0:00:27.3]} 34. Qa4 {[%clk 0:00:51.3]} 34...
Qb7 {[%clk 0:00:25.8]} 35. Nf1 {[%clk 0:00:47.4]} 35... Qb5 {[%clk 0:00:22.1]}
36. Qc2 {[%clk 0:00:43.4]} 36... d4 {[%clk 0:00:21.5]} 37. N1d2 {[%clk
0:00:37.5]} 37... d3 {[%clk 0:00:21]} 38. Qd1 {[%clk 0:00:37.5]} 38... Qc5
{[%clk 0:00:19.1]} 39. Qa4 {[%clk 0:00:35]} 39... Rb7 {[%clk 0:00:16.7]} 40.
Qxc4 {[%clk 0:00:33.6]} 40... Qxc4 {[%clk 0:00:16.5]} 41. Nxc4 {[%clk
0:00:34.5]} 41... c5 {[%clk 0:00:14.4]} 42. Rd1 {[%clk 0:00:34.4]} 42... Kg8
{[%clk 0:00:12.8]} 43. Ne1 {[%clk 0:00:30.4]} 43... Rbd7 {[%clk 0:00:11.8]} 44.
Bd2 {[%clk 0:00:29.5]} 44... Kf7 {[%clk 0:00:11.6]} 45. a4 {[%clk 0:00:29]}
45... Ne7 {[%clk 0:00:11.1]} 46. Nf3 {[%clk 0:00:29]} 46... Nc6 {[%clk
0:00:11.2]} 47. Kf1 {[%clk 0:00:27]} 47... Ke6 {[%clk 0:00:11.5]} 48. Ke1 {[%clk
0:00:27.1]} 48... Rb8 {[%clk 0:00:11.9]} 49. Ra1 {[%clk 0:00:26.4]} 49... Bf6
{[%clk 0:00:12]} 50. Bc1 {[%clk 0:00:26.9]} 50... Bd8 {[%clk 0:00:11.4]} 51. Kd2
{[%clk 0:00:21.9]} 51... Bc7 {[%clk 0:00:11.9]} 52. a5 {[%clk 0:00:20.5]} 52...
a6 {[%clk 0:00:11.4]} 53. Ra4 {[%clk 0:00:19.8]} 53... Rb5 {[%clk 0:00:11.7]}
54. Nh4 {[%clk 0:00:17.7]} 54... Nxa5 {[%clk 0:00:11.1]} 55. Ng6 {[%clk
0:00:12.5]} 55... Nb3+ {[%clk 0:00:09.8]} 56. Kd1 {[%clk 0:00:10.4]} 56... Rd8
{[%clk 0:00:10.3]} 57. Rxa6+ {[%clk 0:00:07.2]} 57... Kf7 {[%clk 0:00:10.8]} 58.
Ngxe5+ {[%clk 0:00:07]} 58... Bxe5 {[%clk 0:00:11.1]} 59. Nxe5+ {[%clk
0:00:07.9]} 59... Kg7 {[%clk 0:00:11.6]} 60. Nc4 {[%clk 0:00:06.7]} 60... Rbb8
{[%clk 0:00:10.1]} 61. Bd2 {[%clk 0:00:06.4]} 61... Ra8 {[%clk 0:00:10]} 62. Ra3
{[%clk 0:00:05.2]} 62... Rxa3 {[%clk 0:00:10.1]} 63. Nxa3 {[%clk 0:00:05.9]}
63... Kf6 {[%clk 0:00:09.6]} 64. c4 {[%clk 0:00:03.7]} 64... Ke5 {[%clk
0:00:08.8]} 65. f3 {[%clk 0:00:03.9]} 65... Kf6 {[%clk 0:00:07.2]} 66. Bc3+
{[%clk 0:00:04.3]} 66... Kg5 {[%clk 0:00:07.8]} 67. Nb1 {[%clk 0:00:04]} 67...
Kh4 {[%clk 0:00:07.6]} 68. Nd2 {[%clk 0:00:04.6]} 68... Nxd2 {[%clk 0:00:06.3]}
69. Kxd2 {[%clk 0:00:05.5]} 69... Rg8 {[%clk 0:00:06.7]} 70. Be5 {[%clk
0:00:04.4]} 70... Rxg2+ {[%clk 0:00:06.4]} 71. Kxd3 {[%clk 0:00:05]} 71... Kxh3
{[%clk 0:00:06.3]} 72. Bxf4 {[%clk 0:00:05.3]} 72... h5 {[%clk 0:00:07]} 73. Bd6
{[%clk 0:00:03.3]} 73... Rxb2 {[%clk 0:00:07.1]} 74. Bxc5 {[%clk 0:00:03.8]}
74... Kg3 {[%clk 0:00:07.7]} 75. Ke3 {[%clk 0:00:03.7]} 75... Rb3+ {[%clk
0:00:07.6]} 76. Kd4 {[%clk 0:00:04.3]} 76... Kxf3 {[%clk 0:00:07.8]} 77. Bd6
{[%clk 0:00:04.9]} 77... Rb1 {[%clk 0:00:07.6]} 78. c5 {[%clk 0:00:04.9]} 78...
Rd1+ {[%clk 0:00:08]} 79. Ke5 {[%clk 0:00:05.5]} 79... h4 {[%clk 0:00:07.9]} 80.
c6 {[%clk 0:00:05.3]} 80... h3 {[%clk 0:00:08.4]} 81. Ke6 {[%clk 0:00:05.9]}
81... Kxe4 {[%clk 0:00:05.9]} 82. c7 {[%clk 0:00:05.9]} 82... Rc1 {[%clk
0:00:04.4]} 83. Kd7 {[%clk 0:00:06.4]} 83... Rxc7+ {[%clk 0:00:02.8]} 84. Kxc7
{[%clk 0:00:06.5]} 84... Kf3 {[%clk 0:00:03.7]} 85. Kd7 {[%clk 0:00:07]} 85...
Kg2 {[%clk 0:00:04.6]} 86. Ke7 {[%clk 0:00:07.2]} 86... h2 {[%clk 0:00:05.5]}
87. Bxh2 {[%clk 0:00:07.3]} 1/2-1/2

[Event "Late-Titled-Tuesday-Blitz-June-25-2024"]
[Site "Chess.com"]
[Date "2024.06.25"]
[Round "5"]
[White "SujanaLohani"]
[Black "harshu27"]
[Result "1/2-1/2"]
[WhiteElo "2302"]
[BlackElo "2538"]
[TimeControl "180+1"]
[EndTime "14:56:34 PDT"]
[Termination "Game drawn - insufficient material"]

1. e4 {[%clk 0:03:00.9]} 1... e5 {[%clk 0:02:59.2]} 2. Nf3 {[%clk 0:02:58.9]}
2... Nc6 {[%clk 0:02:59.5]} 3. Bb5 {[%clk 0:02:56.5]} 3... Nf6 {[%clk
0:02:56.8]} 4. O-O {[%clk 0:02:37]} 4... Nxe4 {[%clk 0:02:42.8]} 5. d4 {[%clk
0:02:35.1]} 5... Nd6 {[%clk 0:02:41.9]} 6. Bxc6 {[%clk 0:02:23.3]} 6... dxc6
{[%clk 0:02:42.8]} 7. dxe5 {[%clk 0:02:22.9]} 7... Nf5 {[%clk 0:02:42.8]} 8.
Qxd8+ {[%clk 0:02:23.4]} 8... Kxd8 {[%clk 0:02:43.7]} 9. Nc3 {[%clk 0:02:23.4]}
9... h5 {[%clk 0:02:37.8]} 10. Bg5+ {[%clk 0:02:20.8]} 10... Ke8 {[%clk
0:02:35.8]} 11. Rad1 {[%clk 0:02:21]} 11... Be6 {[%clk 0:02:34.8]} 12. a3 {[%clk
0:02:19.1]} 12... Be7 {[%clk 0:02:34.3]} 13. Bxe7 {[%clk 0:02:17]} 13... Kxe7
{[%clk 0:02:35.2]} 14. Ng5 {[%clk 0:02:17.3]} 14... Rad8 {[%clk 0:02:33]} 15. f4
{[%clk 0:02:15.1]} 15... Ne3 {[%clk 0:02:23.6]} 16. Rxd8 {[%clk 0:02:12.5]}
16... Rxd8 {[%clk 0:02:24.5]} 17. Rf2 {[%clk 0:02:06.1]} 17... Bf5 {[%clk
0:02:14.6]} 18. h3 {[%clk 0:01:59.4]} 18... Nxc2 {[%clk 0:01:47.3]} 19. g4
{[%clk 0:01:56.9]} 19... hxg4 {[%clk 0:01:45.9]} 20. hxg4 {[%clk 0:01:57.8]}
20... Bd3 {[%clk 0:01:44.5]} 21. f5 {[%clk 0:01:56.7]} 21... Ne3 {[%clk
0:01:42]} 22. f6+ {[%clk 0:01:51.2]} 22... gxf6 {[%clk 0:01:39.1]} 23. exf6+
{[%clk 0:01:52.1]} 23... Ke8 {[%clk 0:01:24.2]} 24. Rf4 {[%clk 0:01:33.8]} 24...
Nd5 {[%clk 0:01:11.1]} 25. Rf3 {[%clk 0:01:32.2]} 25... Nxc3 {[%clk 0:01:10.5]}
26. bxc3 {[%clk 0:01:31.6]} 26... Bg6 {[%clk 0:01:08.8]} 27. Re3+ {[%clk
0:01:29.9]} 27... Kf8 {[%clk 0:01:06.2]} 28. Re7 {[%clk 0:01:29.9]} 28... Rd6
{[%clk 0:00:37.8]} 29. Rxc7 {[%clk 0:01:28.2]} 29... Rxf6 {[%clk 0:00:37.5]} 30.
Rxb7 {[%clk 0:01:28.5]} 30... Rf4 {[%clk 0:00:36.3]} 31. Nh3 {[%clk 0:01:19.1]}
31... Rxg4+ {[%clk 0:00:35.3]} 32. Kf2 {[%clk 0:01:19.7]} 32... Ra4 {[%clk
0:00:33.6]} 33. Rc7 {[%clk 0:01:16.1]} 33... Rxa3 {[%clk 0:00:32.6]} 34. Rxc6
{[%clk 0:01:14.7]} 34... a5 {[%clk 0:00:33.1]} 35. Nf4 {[%clk 0:01:13]} 35...
Bc2 {[%clk 0:00:29.4]} 36. Nd5 {[%clk 0:01:05.8]} 36... a4 {[%clk 0:00:28.7]}
37. Ra6 {[%clk 0:01:06.2]} 37... Bd3 {[%clk 0:00:25.9]} 38. Ra7 {[%clk
0:01:03.4]} 38... Bc4 {[%clk 0:00:20.1]} 39. Nb6 {[%clk 0:01:01.8]} 39... Bb3
{[%clk 0:00:15.7]} 40. c4 {[%clk 0:01:00.7]} 40... Ra2+ {[%clk 0:00:14.5]} 41.
Ke3 {[%clk 0:00:59.6]} 41... a3 {[%clk 0:00:14.1]} 42. c5 {[%clk 0:00:56.4]}
42... Be6 {[%clk 0:00:11.1]} 43. c6 {[%clk 0:00:54.3]} 43... Rc2 {[%clk
0:00:11.1]} 44. c7 {[%clk 0:00:28.3]} 44... a2 {[%clk 0:00:05.5]} 45. c8=Q+
{[%clk 0:00:16.6]} 45... Bxc8 {[%clk 0:00:04.7]} 46. Nxc8 {[%clk 0:00:17.5]}
46... Rxc8 {[%clk 0:00:03.1]} 47. Rxa2 {[%clk 0:00:17.5]} 47... Rc6 {[%clk
0:00:02.9]} 48. Ke4 {[%clk 0:00:17.7]} 48... Re6+ {[%clk 0:00:03.4]} 49. Kf5
{[%clk 0:00:16.8]} 49... Kg7 {[%clk 0:00:03.8]} 50. Rg2+ {[%clk 0:00:16.7]}
50... Kf8 {[%clk 0:00:04.2]} 51. Ra2 {[%clk 0:00:17.4]} 51... Rg6 {[%clk
0:00:04]} 52. Ra7 {[%clk 0:00:17.4]} 52... Kg7 {[%clk 0:00:04]} 53. Rb7 {[%clk
0:00:17.9]} 53... Rc6 {[%clk 0:00:04.1]} 54. Ke5 {[%clk 0:00:17.8]} 54... Rc5+
{[%clk 0:00:04.6]} 55. Kf4 {[%clk 0:00:17.9]} 55... Kg6 {[%clk 0:00:04.8]} 56.
Rb6+ {[%clk 0:00:18.3]} 56... f6 {[%clk 0:00:05.3]} 57. Rd6 {[%clk 0:00:18.5]}
57... Rc4+ {[%clk 0:00:05.6]} 58. Kf3 {[%clk 0:00:18.7]} 58... Kf5 {[%clk
0:00:05.8]} 59. Rd5+ {[%clk 0:00:17.6]} 59... Ke6 {[%clk 0:00:06.2]} 60. Rh5
{[%clk 0:00:18.1]} 60... Rc3+ {[%clk 0:00:06.5]} 61. Kf4 {[%clk 0:00:18]} 61...
Rc4+ {[%clk 0:00:06]} 62. Kf3 {[%clk 0:00:18.2]} 62... Rc1 {[%clk 0:00:06.3]}
63. Rh8 {[%clk 0:00:18.2]} 63... Rf1+ {[%clk 0:00:06.7]} 64. Ke2 {[%clk
0:00:18.4]} 64... Rf4 {[%clk 0:00:06.2]} 65. Ke3 {[%clk 0:00:18.1]} 65... Ra4
{[%clk 0:00:04.5]} 66. Rh5 {[%clk 0:00:17.4]} 66... f5 {[%clk 0:00:04]} 67. Rh8
{[%clk 0:00:16.9]} 67... Re4+ {[%clk 0:00:02.6]} 68. Kf3 {[%clk 0:00:17.1]}
68... Kf6 {[%clk 0:00:02.4]} 69. Rf8+ {[%clk 0:00:17.1]} 69... Kg6 {[%clk
0:00:02.7]} 70. Rg8+ {[%clk 0:00:16.6]} 70... Kf7 {[%clk 0:00:02.9]} 71. Rg5
{[%clk 0:00:17.2]} 71... Kf6 {[%clk 0:00:02.1]} 72. Rg8 {[%clk 0:00:17.2]} 72...
Ra4 {[%clk 0:00:01.3]} 73. Rf8+ {[%clk 0:00:17.1]} 73... Ke5 {[%clk 0:00:02]}
74. Re8+ {[%clk 0:00:17.7]} 74... Kf6 {[%clk 0:00:02.7]} 75. Rf8+ {[%clk
0:00:18.1]} 75... Ke5 {[%clk 0:00:03.4]} 76. Re8+ {[%clk 0:00:18.6]} 76... Kd6
{[%clk 0:00:03.7]} 77. Rf8 {[%clk 0:00:18.8]} 77... Ra5 {[%clk 0:00:03.8]} 78.
Kf4 {[%clk 0:00:17.8]} 78... Ke6 {[%clk 0:00:04.3]} 79. Re8+ {[%clk 0:00:18.1]}
79... Kf7 {[%clk 0:00:04.6]} 80. Rb8 {[%clk 0:00:16.9]} 80... Ra4+ {[%clk
0:00:04.1]} 81. Kxf5 {[%clk 0:00:16.6]} 81... Ra5+ {[%clk 0:00:04.6]} 82. Ke4
{[%clk 0:00:17.1]} 82... Ra4+ {[%clk 0:00:05.2]} 83. Kd5 {[%clk 0:00:17.6]}
83... Ra5+ {[%clk 0:00:05.8]} 84. Kc6 {[%clk 0:00:18.2]} 84... Ra6+ {[%clk
0:00:06]} 85. Kb5 {[%clk 0:00:18.1]} 85... Re6 {[%clk 0:00:06.6]} 86. Rb7+
{[%clk 0:00:18.5]} 86... Re7 {[%clk 0:00:07.4]} 87. Rb6 {[%clk 0:00:18.4]} 87...
Re6 {[%clk 0:00:07.7]} 88. Rb8 {[%clk 0:00:17.4]} 88... Re8 {[%clk 0:00:07.5]}
89. Rb7+ {[%clk 0:00:17.5]} 89... Re7 {[%clk 0:00:07.9]} 90. Rb6 {[%clk
0:00:18]} 90... Re6 {[%clk 0:00:08.3]} 91. Rc6 {[%clk 0:00:18.5]} 91... Rxc6
{[%clk 0:00:07.1]} 92. Kxc6 {[%clk 0:00:19.4]} 1/2-1/2